fUST/lending_fUST_20250107
["ID","MTS","AMOUNT","RATE_DAILY","PERIOD"]
[347908499,1736193046734,-500.0,0.00019171,2]
[347908500,1736193046744,-500.0,0.00019171,2]
[347908501,1736193046753,-500.0,0.00019171,2]
[347908502,1736193046762,-500.0,0.00019171,2]
[347908503,1736193046771,-367.38983968,0.00019171,2]
[347908504,1736193046780,-500.0,0.00019171,2]
[347908505,1736193046789,-500.0,0.00019171,2]
[347908506,1736193046799,-500.0,0.00019171,2]
[347908507,1736193046808,-500.0,0.00019171,2]
[347908508,1736193046817,-500.0,0.00019171,2]
[347908509,1736193046826,-500.0,0.00019178,2]
[347908510,1736193046835,-2340.47,0.00019178,2]
[347908511,1736193046846,-1495.76,0.00019178,2]
[347908512,1736193046855,-500.0,0.00019452,3]
[347908513,1736193046864,-2340.47,0.00019452,3]
[347908514,1736193046873,-1495.76,0.00019452,3]
[347908515,1736193046883,-113.09654588,0.00019726,3]
[347908516,1736193046892,-866.51,0.00019726,3]
[347908517,1736193047045,-500.0,0.00019726,3]
[347908518,1736193047055,-534.44,0.00019726,3]
[347908519,1736193047064,-2563.1,0.00019726,3]
[347908520,1736193047074,-500.0,0.00019726,3]
[347908521,1736193047084,-570.69,0.00019726,3]
[347908522,1736193047093,-500.0,0.00019726,3]
[347908523,1736193047103,-500.0,0.00019726,3]
[347908524,1736193047113,-825.32,0.00019726,3]
[347908525,1736193047123,-500.0,0.00019726,3]
[347908526,1736193047132,-500.0,0.00019726,3]
[347908527,1736193047142,-340.65846001,0.00019726,3]
[347908528,1736193047151,-500.0,0.00019726,3]
[347908529,1736193047162,-500.0,0.00019726,3]
[347908530,1736193047171,-2035.2,0.00019726,3]
[347908531,1736193047181,-1553.94,0.00019726,3]
[347908532,1736193047191,-500.0,0.00019726,3]
[347908533,1736193047200,-500.0,0.00019726,3]
[347908534,1736193047210,-885.33,0.00019726,3]
[347908535,1736193047219,-826.0,0.00019726,3]
[347908536,1736193047228,-500.0,0.00019726,3]
[347908537,1736193047238,-500.0,0.00019726,3]
[347908538,1736193047247,-500.0,0.00019726,3]
[347908539,1736193047257,-500.0,0.00019726,3]
[347908540,1736193047266,-500.0,0.00019726,3]
[347908541,1736193047275,-677.99,0.00019726,3]
[347908542,1736193047285,-500.0,0.00019726,3]
[347908543,1736193047294,-500.0,0.00019726,3]
[347908544,1736193047303,-500.0,0.00019726,3]
[347908545,1736193047312,-500.0,0.00019726,3]
[347908546,1736193047321,-608.10065513,0.00019726,3]
[347908547,1736193047330,-500.0,0.00019726,3]
[347908548,1736193047339,-500.0,0.00019726,3]
[347908549,1736193047349,-500.0,0.00019726,3]
[347908550,1736193047358,-500.0,0.00019726,3]
[347908551,1736193047367,-184.54483202,0.00019726,3]
[347908552,1736193047376,-19057.46,0.00019726,3]
[347908553,1736193047385,-597.61,0.00019726,3]
[347908554,1736193047394,-500.0,0.00019726,3]
[347908555,1736193047403,-1538.9,0.00019726,3]
[347908556,1736193047414,-2415.64,0.00019726,3]
[347908557,1736193047423,-500.0,0.00019726,3]
[347908558,1736193047434,-500.0,0.00019726,3]
[347908559,1736193047443,-500.0,0.00019726,3]
[347908560,1736193047453,-573.51,0.00019726,3]
[347908561,1736193047466,-500.0,0.00019726,3]
[347908562,1736193047475,-500.0,0.00019726,3]
[347908563,1736193047485,-2340.47,0.00019726,3]
[347908564,1736193047494,-1495.76,0.00019726,3]
[347908565,1736193047505,-2193.7120052,0.00019762,2]
[347908566,1736193047515,-164.765337,0.00019806,4]
[347908567,1736193047524,-500.0,0.00019862,2]
[347908568,1736193047533,-2193.7120052,0.00019934,2]
[347908569,1736193047542,-426.496,0.0001995,2]
[347908570,1736193047552,-500.0,0.00019973,2]
[347908571,1736193047561,-500.0,0.00019973,2]
[347908572,1736193047570,-500.0,0.00019973,2]
[347908573,1736193047579,-500.98430781,0.00019973,2]
[347908574,1736193047588,-500.0,0.00019973,2]
[347908575,1736193047598,-501.55883046,0.00019973,2]
[347908576,1736193047607,-500.0,0.00019973,2]
[347908577,1736193047616,-501.60321913,0.00019973,2]
[347908578,1736193047626,-8331.78383117,0.00019995,2]
[347908579,1736193047635,-500.0,0.00019999,2]
[347908580,1736193047644,-2867.88864448,0.0002,2]
[347908581,1736193047657,-17213.67813801,0.0002,2]
[347908582,1736193047668,-18577.59999999,0.0002,2]
[347908583,1736193047679,-586.84177384,0.0002,2]
[347908584,1736193047689,-595.62019154,0.0002,2]
[347908585,1736193047699,-689.92268865,0.0002,30]
[347908586,1736193047708,-545.61534197,0.0002,2]
[347908593,1736193541313,16174.10987858,0.00021917,120]
[347908594,1736193819164,-1388.15295872,0.00023082,30]
[347908595,1736193819192,-829.91105036,0.00023082,30]
[347908596,1736193819217,-1220.67271336,0.00023082,30]
[347908597,1736193819242,-3163.37745344,0.00023082,30]
[347908598,1736193819267,-237.93616068,0.00023082,30]
[347908599,1736193819291,-1776.46453542,0.00023082,30]
[347908600,1736193819315,-1813.47438772,0.00023082,30]
[347908601,1736193819341,-14100.0,0.00023082,30]
[347908602,1736193819366,-875470.0107403,0.00023082,61]
[347908603,1736193828228,-900000.0,0.00023082,61]
[347908604,1736193831752,-900000.0,0.00023082,61]
[347908605,1736193835324,-900000.0,0.00023082,61]
[347908606,1736193853333,501.89544525,0.00025,120]
[347908607,1736193870891,160.0,0.00023247,120]
[347908608,1736193901577,500.0,0.00022082,120]
[347908609,1736193902924,500.0,0.00022082,120]
[347908610,1736193903149,1302.0,0.00025,120]
[347908611,1736193903444,500.0,0.00022082,120]
[347908612,1736193904552,500.0,0.00022082,120]
[347908613,1736193905295,500.0,0.00022082,120]
[347908614,1736193906042,500.0,0.00022082,120]
[347908615,1736193906779,500.0,0.00022082,120]
[347908616,1736193907296,732.08,0.00022495,120]
[347908617,1736193907534,500.0,0.00022082,120]
[347908618,1736193908287,500.0,0.00022082,120]
[347908619,1736193909044,500.0,0.00022082,120]
[347908620,1736193909821,500.0,0.00022082,120]
[347908621,1736193910600,500.0,0.00022082,120]
[347908622,1736193911340,500.0,0.00022082,120]
[347908623,1736193912075,500.0,0.00022082,120]
[347908624,1736193912861,500.0,0.00022082,120]
[347908625,1736193914698,500.0,0.00022082,120]
[347908626,1736193915434,500.0,0.00022082,120]
[347908627,1736193916176,500.0,0.00022082,120]
[347908628,1736193916921,500.0,0.00022082,120]
[347908629,1736193917665,500.0,0.00022082,120]
[347908630,1736193918473,500.0,0.00022082,120]
[347908631,1736193919154,500.0,0.00022082,120]
[347908632,1736193919914,500.0,0.00022082,120]
[347908633,1736193920658,500.0,0.00022082,120]
[347908634,1736193921392,500.0,0.00022082,120]
[347908635,1736193922142,500.0,0.00022082,120]
[347908636,1736193922898,500.0,0.00022082,120]
[347908637,1736193923656,607.8,0.00022082,120]
[347908638,1736193931701,160.0,0.00024155,120]
[347908639,1736193974703,159.829751,0.00013973,2]
[347908640,1736193990726,160.0,0.00023917,120]
[347908641,1736193990787,500.0,0.00022082,120]
[347908649,1736194050780,160.0,0.00023609,120]
[347908650,1736194110737,160.0,0.00024745,120]
[347908651,1736194146137,-391.5289171,0.00017096,2]
[347908652,1736194146158,-791.42114288,0.0001719,2]
[347908653,1736194146178,-336.540828,0.00017329,2]
[347908654,1736194146198,-4828.04809195,0.00017364,2]
[347908655,1736194146229,-171.95190805,0.00017364,2]
[347908656,1736194147103,-3432.2881621,0.00017968,2]
[347908657,1736194147124,-860.80151261,0.00018076,2]
[347908660,1736194170782,160.0,0.00022669,120]
[347908661,1736194230733,160.0,0.00023908,120]
[347908703,1736194231897,-277.22706948,0.00017895,2]
[347908705,1736194231907,-300.0,0.00018075,2]
[347908707,1736194231916,-4423.96145553,0.00018075,2]
[347908708,1736194231927,-4832.25300676,0.00018075,2]
[347908782,1736194237761,-2895.06639145,0.00018075,2]
[347908783,1736194237840,-17115.71914626,0.00018075,2]
[347908784,1736194237850,-1506.9473023,0.00018079,2]
[347908785,1736194237861,-514.2336423,0.00018159,2]
[347908786,1736194237870,-1180.5404998,0.00018259,2]
[347908787,1736194237879,-514.23364227,0.0001885,2]
[347908788,1736194237894,-2796.49361623,0.000189,2]
[347908789,1736194237903,-352.9020598,0.00019041,2]
[347908790,1736194237913,-2796.49361598,0.00019072,2]
[347908791,1736194237922,-351.15385852,0.00019078,2]
[347908792,1736194237932,-1000.0,0.00019173,30]
[347908793,1736194237941,-1000.0,0.00019173,35]
[347908794,1736194237951,-504.11863336,0.00019173,2]
[347908795,1736194237960,-265.71868349,0.00019173,2]
[347908796,1736194237970,-500.0,0.00019173,2]
[347908797,1736194237979,-283.48671577,0.00019173,2]
[347908798,1736194237989,-160.6306041,0.00019173,2]
[347908799,1736194237999,-500.0,0.00019173,2]
[347908800,1736194238008,-500.0,0.00019173,2]
[347908801,1736194238018,-502.74456642,0.00019173,2]
[347908802,1736194238027,-500.0,0.00019173,2]
[347908803,1736194238036,-271.56017929,0.00019173,2]
[347908804,1736194238045,-166.05432455,0.00019173,2]
[347908805,1736194238054,-266.55072074,0.00019173,2]
[347908806,1736194238064,-153.03446642,0.00019173,2]
[347908807,1736194238073,-500.0,0.00019173,2]
[347908808,1736194238082,-260.05738414,0.00019173,2]
[347908809,1736194238091,-500.0,0.00019173,2]
[347908810,1736194238100,-500.0,0.00019173,2]
[347908811,1736194238109,-267.95883388,0.00019173,2]
[347908812,1736194238118,-500.0,0.00019173,2]
[347908813,1736194238127,-500.0,0.00019174,2]
[347908814,1736194238137,-500.0,0.00019174,2]
[347908815,1736194238149,-500.0,0.00019174,2]
[347908816,1736194238159,-500.0,0.00019174,2]
[347908817,1736194238169,-627.45864256,0.00019174,2]
[347908818,1736194238178,-500.0,0.00019174,2]
[347908819,1736194238187,-500.0,0.00019174,2]
[347908820,1736194238196,-500.0,0.00019174,2]
[347908821,1736194238205,-500.0,0.00019174,2]
[347908822,1736194238215,-500.0,0.00019174,2]
[347908823,1736194238224,-500.0,0.00019174,2]
[347908824,1736194238233,-500.0,0.00019174,2]
[347908825,1736194238243,-417.86051913,0.00019174,2]
[347908826,1736194238252,-500.0,0.00019174,2]
[347908827,1736194238261,-500.0,0.00019174,2]
[347908828,1736194238270,-500.0,0.00019174,2]
[347908829,1736194238420,-500.0,0.00019174,2]
[347908830,1736194238430,-500.0,0.00019174,2]
[347908831,1736194238442,-301.19088001,0.00019174,2]
[347908832,1736194238452,-500.0,0.00019174,2]
[347908833,1736194238461,-500.0,0.00019174,2]
[347908834,1736194238471,-500.0,0.00019174,2]
[347908835,1736194238480,-500.0,0.00019174,2]
[347908836,1736194238494,-500.0,0.00019174,2]
[347908837,1736194238503,-500.0,0.00019174,2]
[347908838,1736194238513,-500.0,0.00019174,2]
[347908839,1736194238522,-396.74738623,0.00019174,2]
[347908840,1736194238531,-500.0,0.00019174,2]
[347908841,1736194238540,-500.0,0.00019174,2]
[347908842,1736194238549,-500.0,0.00019174,2]
[347908843,1736194238559,-500.0,0.00019174,2]
[347908844,1736194238568,-500.0,0.00019174,2]
[347908845,1736194238578,-500.0,0.00019174,2]
[347908846,1736194238587,-500.0,0.00019174,2]
[347908847,1736194238596,-500.0,0.00019174,2]
[347908848,1736194238605,-500.0,0.00019174,2]
[347908849,1736194238614,-500.0,0.00019174,2]
[347908850,1736194238624,-500.0,0.00019174,2]
[347908851,1736194238633,-500.0,0.00019174,2]
[347908852,1736194238645,-500.0,0.00019174,2]
[347908853,1736194238654,-500.0,0.00019174,2]
[347908854,1736194238663,-461.85284825,0.00019174,2]
[347908855,1736194238673,-500.0,0.00019174,2]
[347908856,1736194238682,-500.0,0.00019174,2]
[347908857,1736194238691,-500.0,0.00019174,2]
[347908858,1736194238700,-500.0,0.00019174,2]
[347908859,1736194238709,-500.0,0.00019174,2]
[347908860,1736194238718,-500.0,0.00019174,2]
[347908861,1736194238727,-500.0,0.00019174,2]
[347908862,1736194238737,-500.0,0.00019174,2]
[347908863,1736194238746,-500.0,0.00019174,2]
[347908864,1736194238756,-500.0,0.00019174,2]
[347908865,1736194238767,-500.0,0.00019174,2]
[347908866,1736194238778,-500.0,0.00019174,2]
[347908867,1736194238787,-500.0,0.00019174,2]
[347908868,1736194238796,-500.0,0.00019174,2]
[347908869,1736194238806,-500.0,0.00019174,2]
[347908870,1736194238818,-500.0,0.00019174,2]
[347908871,1736194238827,-500.0,0.00019174,2]
[347908872,1736194238836,-500.0,0.00019174,2]
[347908873,1736194238846,-500.0,0.00019174,2]
[347908874,1736194238856,-500.0,0.00019174,2]
[347908875,1736194238865,-500.0,0.00019174,2]
[347908876,1736194238875,-500.0,0.00019174,2]
[347908877,1736194238884,-500.0,0.00019174,2]
[347908878,1736194238896,-500.0,0.00019174,2]
[347908879,1736194238905,-500.0,0.00019174,2]
[347908880,1736194238915,-500.0,0.00019174,2]
[347908881,1736194238924,-500.0,0.00019174,2]
[347908882,1736194238934,-500.0,0.00019174,2]
[347908883,1736194238943,-500.0,0.00019174,2]
[347908884,1736194238953,-500.0,0.00019174,2]
[347908885,1736194238962,-500.0,0.00019174,2]
[347908886,1736194238971,-500.0,0.00019174,2]
[347908887,1736194238981,-500.0,0.00019174,2]
[347908888,1736194238991,-500.0,0.00019174,2]
[347908889,1736194239001,-500.0,0.00019174,2]
[347908890,1736194239011,-500.0,0.00019174,2]
[347908891,1736194239021,-500.0,0.00019174,2]
[347908892,1736194239030,-500.0,0.00019174,2]
[347908893,1736194239041,-500.0,0.00019174,2]
[347908894,1736194239050,-500.0,0.00019174,2]
[347908895,1736194239059,-500.0,0.00019174,2]
[347908896,1736194239069,-500.0,0.00019174,2]
[347908897,1736194239078,-500.0,0.00019174,2]
[347908898,1736194239088,-500.0,0.00019174,2]
[347908899,1736194239097,-155.264,0.00019177,2]
[347908900,1736194239107,-500.0,0.00019177,2]
[347908901,1736194239116,-178.72321647,0.00019177,2]
[347908902,1736194239125,-338.33522931,0.00019177,2]
[347908903,1736194239134,-482.92325038,0.00019177,2]
[347908904,1736194239145,-500.0,0.00019178,2]
[347908905,1736194239154,-1885.17,0.00019178,2]
[347908906,1736194239163,-500.0,0.00019178,2]
[347908907,1736194239172,-500.0,0.00019178,2]
[347908908,1736194239182,-500.0,0.00019178,2]
[347908909,1736194239191,-500.0,0.00019178,2]
[347908910,1736194239200,-569.02,0.00019178,2]
[347908911,1736194239209,-500.0,0.00019178,2]
[347908912,1736194239219,-159.16435067,0.00019178,2]
[347908913,1736194239229,-500.0,0.00019178,2]
[347908914,1736194239238,-500.0,0.00019178,2]
[347908915,1736194239247,-588.63589134,0.00019178,2]
[347908916,1736194239257,-500.0,0.00019178,2]
[347908917,1736194239266,-500.0,0.00019178,2]
[347908918,1736194239276,-500.0,0.00019178,2]
[347908919,1736194239285,-455.34811498,0.00019178,2]
[347908920,1736194239294,-321.84887538,0.00019178,2]
[347908921,1736194239303,-500.0,0.00019178,2]
[347908922,1736194239313,-500.0,0.00019178,2]
[347908923,1736194239322,-730.74,0.00019178,2]
[347908924,1736194239331,-500.0,0.00019178,2]
[347908925,1736194239340,-500.0,0.00019178,2]
[347908926,1736194239349,-595.4648002,0.00019178,2]
[347908927,1736194239359,-589.98245705,0.00019178,2]
[347908928,1736194239369,-500.0,0.00019178,2]
[347908929,1736194239378,-233.86571772,0.00019178,2]
[347908930,1736194239387,-557.25731391,0.00019178,2]
[347908931,1736194239399,-500.0,0.00019178,2]
[347908932,1736194239414,-500.0,0.00019178,2]
[347908933,1736194239423,-500.0,0.00019178,2]
[347908934,1736194239432,-500.0,0.00019178,2]
[347908936,1736194239442,-500.0,0.00019178,2]
[347908937,1736194239451,-500.0,0.00019178,2]
[347908938,1736194239460,-500.0,0.00019178,2]
[347908939,1736194239469,-500.0,0.00019178,2]
[347908940,1736194239478,-500.0,0.00019178,2]
[347908941,1736194239487,-500.0,0.00019178,2]
[347908942,1736194239496,-500.0,0.00019178,2]
[347908943,1736194239505,-529.37,0.00019178,2]
[347908944,1736194239514,-581.59,0.00019178,2]
[347908945,1736194239523,-500.0,0.00019178,2]
[347908946,1736194239532,-500.0,0.00019178,2]
[347908947,1736194239542,-533.24,0.00019178,2]
[347908949,1736194239551,-500.0,0.00019178,2]
[347908950,1736194239560,-500.0,0.00019178,2]
[347908951,1736194239569,-500.0,0.00019178,2]
[347908952,1736194239578,-551.7,0.00019178,2]
[347908953,1736194239587,-500.0,0.00019178,2]
[347908954,1736194239596,-500.0,0.00019178,2]
[347908955,1736194239606,-500.0,0.00019178,2]
[347908956,1736194239615,-500.0,0.00019178,2]
[347908957,1736194239625,-500.0,0.00019178,2]
[347908958,1736194239635,-500.0,0.00019178,2]
[347908959,1736194239645,-500.0,0.00019178,2]
[347908961,1736194239655,-500.0,0.00019178,2]
[347908962,1736194239663,-500.0,0.00019178,2]
[347908964,1736194239673,-604.92448144,0.00019178,2]
[347908965,1736194239682,-500.0,0.00019178,2]
[347908966,1736194239691,-500.0,0.00019178,2]
[347908967,1736194239700,-500.0,0.00019178,2]
[347908969,1736194239709,-500.0,0.00019178,2]
[347908971,1736194239718,-500.0,0.00019178,2]
[347908973,1736194239727,-500.0,0.00019178,2]
[347908975,1736194239737,-500.0,0.00019178,2]
[347908977,1736194239747,-500.0,0.00019178,2]
[347908979,1736194239755,-500.0,0.00019178,2]
[347908981,1736194239765,-500.0,0.00019178,2]
[347908982,1736194239774,-500.0,0.00019178,2]
[347908984,1736194239784,-500.0,0.00019178,2]
[347908986,1736194239795,-500.0,0.00019178,2]
[347908988,1736194239804,-500.0,0.00019178,2]
[347908989,1736194239817,-500.0,0.00019178,2]
[347908990,1736194239826,-500.0,0.00019178,2]
[347908991,1736194239834,-523.19,0.00019178,2]
[347908992,1736194239843,-500.0,0.00019178,2]
[347908993,1736194239854,-500.0,0.00019178,2]
[347908994,1736194239863,-500.0,0.00019178,2]
[347908995,1736194239872,-500.0,0.00019178,2]
[347908996,1736194239881,-500.0,0.00019178,2]
[347908997,1736194239891,-500.0,0.00019178,2]
[347908998,1736194239903,-500.0,0.00019178,2]
[347908999,1736194239911,-500.0,0.00019178,2]
[347909000,1736194239921,-500.0,0.00019178,2]
[347909001,1736194239930,-500.0,0.00019178,2]
[347909002,1736194239940,-500.0,0.00019178,2]
[347909003,1736194239949,-501.47494827,0.00019178,2]
[347909004,1736194239958,-500.0,0.00019178,2]
[347909005,1736194239967,-500.0,0.00019178,2]
[347909006,1736194239978,-500.0,0.00019178,2]
[347909007,1736194239988,-500.0,0.00019178,2]
[347909008,1736194239998,-367.99460788,0.00019178,2]
[347909009,1736194240008,-500.0,0.00019178,2]
[347909010,1736194240018,-500.0,0.00019178,2]
[347909011,1736194240028,-500.0,0.00019178,2]
[347909012,1736194240038,-500.0,0.00019178,2]
[347909013,1736194240048,-500.0,0.00019178,2]
[347909014,1736194240057,-500.0,0.00019178,2]
[347909015,1736194240066,-500.0,0.00019178,2]
[347909016,1736194240075,-500.0,0.00019178,2]
[347909017,1736194240084,-500.0,0.00019178,2]
[347909018,1736194240094,-500.0,0.00019178,2]
[347909019,1736194240103,-500.0,0.00019178,2]
[347909020,1736194240112,-500.0,0.00019178,2]
[347909021,1736194240121,-500.0,0.00019178,2]
[347909022,1736194240130,-500.0,0.00019178,2]
[347909023,1736194240139,-257.15109128,0.00019178,2]
[347909024,1736194240150,-500.0,0.00019178,2]
[347909025,1736194240159,-2457.52,0.00019178,2]
[347909026,1736194240169,-500.0,0.00019178,2]
[347909027,1736194240178,-500.0,0.00019178,2]
[347909028,1736194240187,-500.0,0.00019178,2]
[347909029,1736194240197,-500.0,0.00019178,2]
[347909030,1736194240206,-500.0,0.00019178,2]
[347909031,1736194240215,-500.0,0.00019178,2]
[347909032,1736194240225,-500.0,0.00019178,2]
[347909033,1736194240234,-500.0,0.00019178,2]
[347909034,1736194240243,-500.0,0.00019178,2]
[347909035,1736194240252,-500.0,0.00019178,2]
[347909036,1736194240261,-500.0,0.00019178,2]
[347909037,1736194240270,-500.0,0.00019178,2]
[347909038,1736194240279,-500.0,0.00019178,2]
[347909039,1736194240288,-500.0,0.00019178,2]
[347909040,1736194240297,-500.0,0.00019178,2]
[347909041,1736194240306,-500.0,0.00019178,2]
[347909042,1736194240315,-500.0,0.00019178,2]
[347909043,1736194240324,-500.0,0.00019178,2]
[347909044,1736194240333,-500.0,0.00019178,2]
[347909045,1736194240345,-500.0,0.00019178,2]
[347909046,1736194240354,-500.0,0.00019178,2]
[347909047,1736194240364,-500.0,0.00019178,2]
[347909048,1736194240373,-500.0,0.00019178,2]
[347909049,1736194240383,-500.0,0.00019178,2]
[347909050,1736194240392,-500.0,0.00019178,2]
[347909051,1736194240403,-500.0,0.00019178,2]
[347909052,1736194240412,-500.0,0.00019178,2]
[347909053,1736194240421,-500.0,0.00019178,2]
[347909054,1736194240430,-500.0,0.00019178,2]
[347909055,1736194240439,-500.0,0.00019178,2]
[347909056,1736194240448,-3899.39,0.00019178,2]
[347909057,1736194240457,-500.0,0.00019178,2]
[347909058,1736194240466,-249.74909326,0.00019178,2]
[347909059,1736194240475,-500.0,0.00019178,2]
[347909060,1736194240484,-500.0,0.00019178,2]
[347909061,1736194240493,-500.0,0.00019178,2]
[347909062,1736194240503,-500.0,0.00019178,2]
[347909063,1736194240512,-500.0,0.00019178,2]
[347909064,1736194240522,-500.0,0.00019178,2]
[347909065,1736194240532,-500.50975555,0.00019178,2]
[347909066,1736194240541,-500.0,0.00019178,2]
[347909067,1736194240550,-500.0,0.00019178,2]
[347909068,1736194240559,-1359.7,0.00019178,2]
[347909069,1736194240568,-500.0,0.00019178,2]
[347909070,1736194240578,-500.0,0.00019178,2]
[347909071,1736194240589,-500.0,0.00019178,2]
[347909072,1736194240598,-500.0,0.00019178,2]
[347909073,1736194240607,-596.61,0.00019178,2]
[347909074,1736194240616,-500.0,0.00019178,2]
[347909075,1736194240625,-583.56250248,0.00019178,2]
[347909076,1736194240635,-500.0,0.00019178,2]
[347909077,1736194240644,-500.0,0.00019178,2]
[347909078,1736194240653,-743.58,0.00019178,2]
[347909079,1736194240662,-500.0,0.00019178,2]
[347909080,1736194240671,-500.0,0.00019178,2]
[347909081,1736194240680,-500.0,0.00019178,2]
[347909082,1736194240689,-500.0,0.00019178,2]
[347909083,1736194240699,-500.0,0.00019178,2]
[347909084,1736194240708,-500.0,0.00019178,2]
[347909085,1736194240717,-500.0,0.00019178,2]
[347909086,1736194240726,-632.54,0.00019178,2]
[347909087,1736194240735,-500.0,0.00019178,2]
[347909088,1736194240744,-500.0,0.00019178,2]
[347909089,1736194240754,-500.0,0.00019178,2]
[347909090,1736194240763,-500.0,0.00019178,2]
[347909091,1736194240772,-500.0,0.00019178,2]
[347909092,1736194240781,-607.60275963,0.00019178,2]
[347909093,1736194240792,-422.199995,0.00019178,2]
[347909094,1736194240801,-500.0,0.00019178,2]
[347909095,1736194240812,-500.0,0.00019178,2]
[347909096,1736194240822,-500.0,0.00019178,2]
[347909097,1736194240831,-853.37,0.00019178,2]
[347909098,1736194240839,-500.0,0.00019178,2]
[347909099,1736194240849,-500.0,0.00019178,2]
[347909100,1736194240858,-1346.54,0.00019178,2]
[347909101,1736194240867,-500.0,0.00019178,2]
[347909102,1736194240876,-500.0,0.00019178,2]
[347909103,1736194240885,-500.0,0.00019178,2]
[347909104,1736194240897,-500.0,0.00019178,2]
[347909105,1736194240907,-500.0,0.00019178,2]
[347909106,1736194240916,-500.0,0.00019178,2]
[347909107,1736194240925,-500.0,0.00019178,2]
[347909108,1736194240934,-500.0,0.00019178,2]
[347909109,1736194240943,-1308.79,0.00019178,2]
[347909110,1736194240952,-500.0,0.00019178,2]
[347909111,1736194240961,-500.0,0.00019178,2]
[347909112,1736194240970,-500.0,0.00019178,2]
[347909113,1736194240979,-500.0,0.00019178,2]
[347909114,1736194240988,-500.0,0.00019178,2]
[347909115,1736194240997,-500.0,0.00019178,2]
[347909116,1736194241006,-500.0,0.00019178,2]
[347909117,1736194241015,-1780.8,0.00019178,2]
[347909118,1736194241023,-500.0,0.00019178,2]
[347909119,1736194241032,-500.0,0.00019178,2]
[347909120,1736194241041,-500.0,0.00019178,2]
[347909121,1736194241050,-500.0,0.00019178,2]
[347909122,1736194241058,-500.0,0.00019178,2]
[347909123,1736194241067,-500.0,0.00019178,2]
[347909124,1736194241077,-500.0,0.00019178,2]
[347909125,1736194241086,-524.60320148,0.00019178,2]
[347909126,1736194241095,-500.0,0.00019178,2]
[347909127,1736194241103,-500.0,0.00019178,2]
[347909128,1736194241112,-500.0,0.00019178,2]
[347909129,1736194241121,-830.59,0.00019178,2]
[347909130,1736194241131,-500.0,0.00019178,2]
[347909131,1736194241140,-623.13858028,0.00019178,2]
[347909132,1736194241151,-500.0,0.00019178,2]
[347909133,1736194241161,-500.0,0.00019178,2]
[347909134,1736194241171,-500.0,0.00019178,2]
[347909135,1736194241181,-500.0,0.00019178,2]
[347909136,1736194241190,-500.0,0.00019178,2]
[347909137,1736194241199,-500.0,0.00019178,2]
[347909138,1736194241208,-500.0,0.00019178,2]
[347909139,1736194241218,-500.0,0.00019178,2]
[347909140,1736194241227,-632.89,0.00019178,2]
[347909141,1736194241236,-1075.81,0.00019178,2]
[347909142,1736194241246,-500.0,0.00019178,2]
[347909143,1736194241255,-500.0,0.00019178,2]